[Event "*** MasterClass Titled Tuesday Blitz"]
[Site "Chess.com"]
[Date "2017.12.05"]
[Round "3"]
[White "yurisolo"]
[Black "moro182"]
[Result "1-0"]
[WhiteElo "2495"]
[BlackElo "2607"]
[TimeControl "180+2"]
[EndTime "14:49:46 PST"]
[Termination "yurisolo won by resignation"]

1. e4 {[%clk 0:03:01.2]} 1... e5 {[%clk 0:03:00.3]} 2. Nf3 {[%clk 0:03:01.1]}
2... Nc6 {[%clk 0:03:01.1]} 3. Bb5 {[%clk 0:03:00.6]} 3... a6 {[%clk 0:03:02]}
4. Ba4 {[%clk 0:03:01]} 4... Nf6 {[%clk 0:03:03]} 5. O-O {[%clk 0:03:01.4]} 5...
b5 {[%clk 0:03:04.6]} 6. Bb3 {[%clk 0:02:59.7]} 6... Bc5 {[%clk 0:03:06.5]} 7.
a4 {[%clk 0:02:59.6]} 7... Rb8 {[%clk 0:03:07.5]} 8. c3 {[%clk 0:02:59]} 8... d6
{[%clk 0:03:08.3]} 9. d4 {[%clk 0:02:57.6]} 9... Bb6 {[%clk 0:03:08.5]} 10. a5
{[%clk 0:02:58.2]} 10... Ba7 {[%clk 0:03:08.7]} 11. h3 {[%clk 0:02:55.5]} 11...
O-O {[%clk 0:03:07.1]} 12. Be3 {[%clk 0:02:54.6]} 12... Ra8 {[%clk 0:03:07.1]}
13. Nbd2 {[%clk 0:02:53.7]} 13... h6 {[%clk 0:03:08.2]} 14. Re1 {[%clk
0:02:51.3]} 14... Re8 {[%clk 0:03:09.5]} 15. Nf1 {[%clk 0:02:38.7]} 15... exd4
{[%clk 0:03:05.1]} 16. Nxd4 {[%clk 0:02:38.7]} 16... Ne5 {[%clk 0:02:58]} 17.
Ng3 {[%clk 0:02:04.4]} 17... Bb7 {[%clk 0:02:45.8]} 18. Ndf5 {[%clk 0:01:56.8]}
18... Nxe4 {[%clk 0:02:17.2]} 19. Nxe4 {[%clk 0:01:43.1]} 19... Bxe4 {[%clk
0:02:19.1]} 20. Nxg7 {[%clk 0:01:41.7]} 20... Kxg7 {[%clk 0:02:14.9]} 21. Bxa7
{[%clk 0:01:40.5]} 21... Bxg2 {[%clk 0:02:04.3]} 22. Kxg2 {[%clk 0:01:15.3]}
22... Rxa7 {[%clk 0:02:02]} 23. f4 {[%clk 0:01:13.9]} 23... Nc6 {[%clk
0:01:09.3]} 24. Qg4+ {[%clk 0:01:10.3]} 24... Kh8 {[%clk 0:00:50.5]} 25. Bxf7
{[%clk 0:01:06]} 25... Rf8 {[%clk 0:00:23]} 26. Qg6 {[%clk 0:00:59.2]} 26... Qh4
{[%clk 0:00:24]} 27. Re3 {[%clk 0:00:33.7]} 27... Nd8 {[%clk 0:00:24.2]} 28. Rg3
{[%clk 0:00:27.5]} 28... Qxg3+ {[%clk 0:00:20.3]} 29. Kxg3 {[%clk 0:00:26]}
29... Nxf7 {[%clk 0:00:22.2]} 30. Kh2 {[%clk 0:00:18.2]} 30... c5 {[%clk
0:00:13.1]} 31. Rg1 {[%clk 0:00:16.2]} 31... Ng5 {[%clk 0:00:13.6]} 1-0

[Event "*** MasterClass Titled Tuesday Blitz"]
[Site "Chess.com"]
[Date "2017.12.05"]
[Round "3"]
[White "bascheyaro"]
[Black "ENEASZ"]
[Result "1-0"]
[WhiteElo "2610"]
[BlackElo "2411"]
[TimeControl "180+2"]
[EndTime "14:49:52 PST"]
[Termination "bascheyaro won by checkmate"]

1. d4 {[%clk 0:03:01.9]} 1... Nf6 {[%clk 0:02:59.8]} 2. c4 {[%clk 0:03:03.2]}
2... e6 {[%clk 0:03:00.8]} 3. Nf3 {[%clk 0:03:04.7]} 3... d5 {[%clk 0:03:01.3]}
4. Bg5 {[%clk 0:03:05.1]} 4... Nbd7 {[%clk 0:03:01]} 5. e3 {[%clk 0:03:06.4]}
5... Be7 {[%clk 0:03:01.5]} 6. Nc3 {[%clk 0:03:07.4]} 6... c6 {[%clk 0:03:02.6]}
7. Qc2 {[%clk 0:03:08.2]} 7... dxc4 {[%clk 0:03:03.4]} 8. Bxc4 {[%clk
0:03:09.3]} 8... Nd5 {[%clk 0:03:04.5]} 9. Bxe7 {[%clk 0:03:09.8]} 9... Qxe7
{[%clk 0:03:06.4]} 10. O-O {[%clk 0:03:10.3]} 10... O-O {[%clk 0:03:07]} 11. e4
{[%clk 0:03:10.3]} 11... Nxc3 {[%clk 0:03:08.1]} 12. bxc3 {[%clk 0:03:11.1]}
12... e5 {[%clk 0:03:07.7]} 13. Rad1 {[%clk 0:03:07.3]} 13... b6 {[%clk
0:03:01.4]} 14. a4 {[%clk 0:02:44.1]} 14... Bb7 {[%clk 0:03:01]} 15. Rfe1 {[%clk
0:02:45.2]} 15... h6 {[%clk 0:02:57.7]} 16. Qa2 {[%clk 0:02:44.4]} 16... g6
{[%clk 0:02:49.8]} 17. h3 {[%clk 0:02:44.8]} 17... Kg7 {[%clk 0:02:50.6]} 18.
dxe5 {[%clk 0:02:36.5]} 18... Rae8 {[%clk 0:02:23.6]} 19. e6 {[%clk 0:02:13.9]}
19... fxe6 {[%clk 0:02:23.4]} 20. Bxe6 {[%clk 0:02:15]} 20... Nc5 {[%clk
0:02:17.1]} 21. Bc4 {[%clk 0:02:15.7]} 21... Rxf3 {[%clk 0:02:03.1]} 22. gxf3
{[%clk 0:02:16.4]} 22... Qg5+ {[%clk 0:02:03.6]} 23. Kh1 {[%clk 0:02:10.8]}
23... Qh5 {[%clk 0:02:03.7]} 24. Bf1 {[%clk 0:02:11.7]} 24... Bc8 {[%clk
0:01:59.5]} 25. Kh2 {[%clk 0:01:40.7]} 25... Qe5+ {[%clk 0:01:52.3]} 26. Kg1
{[%clk 0:01:41.7]} 26... Qg5+ {[%clk 0:01:52.7]} 27. Kh1 {[%clk 0:01:40.8]}
27... Qh5 {[%clk 0:01:52.6]} 28. Kh2 {[%clk 0:01:11.7]} 28... Qe5+ {[%clk
0:01:51.9]} 29. f4 {[%clk 0:01:13]} 29... Qxf4+ {[%clk 0:01:51.8]} 30. Kg1
{[%clk 0:01:14.3]} 30... Nxe4 {[%clk 0:01:26.6]} 31. Bg2 {[%clk 0:01:07]} 31...
Bf5 {[%clk 0:01:17.2]} 32. Qe2 {[%clk 0:00:57.5]} 32... h5 {[%clk 0:00:59.9]}
33. Qe3 {[%clk 0:00:58.5]} 33... Qb8 {[%clk 0:00:39.4]} 34. Rd4 {[%clk
0:00:52.2]} 34... Nf6 {[%clk 0:00:32]} 35. Qc1 {[%clk 0:00:53.1]} 35... Rxe1+
{[%clk 0:00:29.1]} 36. Qxe1 {[%clk 0:00:55]} 36... c5 {[%clk 0:00:30.6]} 37.
Qe7+ {[%clk 0:00:53]} 37... Kh6 {[%clk 0:00:29.3]} 38. Rd8 {[%clk 0:00:41.5]}
38... Qf4 {[%clk 0:00:23.2]} 39. Qxf6 {[%clk 0:00:42.2]} 39... Qc1+ {[%clk
0:00:23.4]} 40. Bf1 {[%clk 0:00:43.6]} 40... Bxh3 {[%clk 0:00:23.6]} 41. Rh8#
{[%clk 0:00:44.1]} 1-0

[Event "*** MasterClass Titled Tuesday Blitz"]
[Site "Chess.com"]
[Date "2017.12.05"]
[Round "3"]
[White "ArnaudovP"]
[Black "Grebeniuk-S"]
[Result "1-0"]
[WhiteElo "2438"]
[BlackElo "2390"]
[TimeControl "180+2"]
[EndTime "14:49:52 PST"]
[Termination "ArnaudovP won by resignation"]

1. d4 {[%clk 0:03:01.9]} 1... f5 {[%clk 0:03:00.7]} 2. c4 {[%clk 0:02:58.1]}
2... Nf6 {[%clk 0:03:01.7]} 3. Nc3 {[%clk 0:02:58.7]} 3... g6 {[%clk 0:03:02.4]}
4. h4 {[%clk 0:02:59.1]} 4... d6 {[%clk 0:03:02.4]} 5. h5 {[%clk 0:03:00.2]}
5... Bg7 {[%clk 0:02:49]} 6. h6 {[%clk 0:02:56.5]} 6... Bf8 {[%clk 0:02:50]} 7.
Nh3 {[%clk 0:02:56.7]} 7... e6 {[%clk 0:02:43.5]} 8. Bg5 {[%clk 0:02:55.7]} 8...
Be7 {[%clk 0:02:44.8]} 9. e3 {[%clk 0:02:56.5]} 9... O-O {[%clk 0:02:45.2]} 10.
Qc2 {[%clk 0:02:57.2]} 10... b6 {[%clk 0:02:44.1]} 11. Be2 {[%clk 0:02:55.2]}
11... Bb7 {[%clk 0:02:45.1]} 12. Bf3 {[%clk 0:02:56.3]} 12... Bxf3 {[%clk
0:02:44.6]} 13. gxf3 {[%clk 0:02:57.3]} 13... Nc6 {[%clk 0:02:39.1]} 14. Rg1
{[%clk 0:02:51]} 14... Nh5 {[%clk 0:02:26.5]} 15. O-O-O {[%clk 0:02:46.5]} 15...
Bf6 {[%clk 0:02:17.9]} 16. f4 {[%clk 0:02:44.8]} 16... a6 {[%clk 0:02:01]} 17.
d5 {[%clk 0:02:42.9]} 17... exd5 {[%clk 0:01:55.7]} 18. Nxd5 {[%clk 0:02:30.9]}
18... Bxg5 {[%clk 0:01:47.2]} 19. fxg5 {[%clk 0:02:30.9]} 19... Ne7 {[%clk
0:01:34.4]} 20. f4 {[%clk 0:02:25.8]} 20... Nxd5 {[%clk 0:01:28.8]} 21. cxd5
{[%clk 0:02:26.4]} 21... Re8 {[%clk 0:01:29.9]} 22. Rge1 {[%clk 0:02:23.3]}
22... Ng3 {[%clk 0:01:28]} 23. Nf2 {[%clk 0:02:18.7]} 23... Ne4 {[%clk
0:01:28.6]} 24. Nxe4 {[%clk 0:02:19.3]} 24... Rxe4 {[%clk 0:01:30.5]} 25. Rd4
{[%clk 0:02:19.1]} 25... Re7 {[%clk 0:01:07.1]} 26. e4 {[%clk 0:02:15]} 26...
fxe4 {[%clk 0:01:07.7]} 27. Rdxe4 {[%clk 0:02:15.3]} 27... Rxe4 {[%clk 0:01:00]}
28. Rxe4 {[%clk 0:02:11.4]} 28... Qd7 {[%clk 0:00:55.8]} 29. Qc3 {[%clk
0:02:11.8]} 29... Rf8 {[%clk 0:00:48.3]} 30. b3 {[%clk 0:02:05.4]} 30... Rf7
{[%clk 0:00:49.3]} 31. Re6 {[%clk 0:02:04.3]} 31... Re7 {[%clk 0:00:20.4]} 32.
Qf6 {[%clk 0:02:02.9]} 32... Rf7 {[%clk 0:00:20.3]} 33. Qd4 {[%clk 0:02:03.7]}
33... Re7 {[%clk 0:00:21.2]} 34. Qe4 {[%clk 0:02:01.4]} 34... Rf7 {[%clk
0:00:16.9]} 35. a4 {[%clk 0:01:58.8]} 35... Kf8 {[%clk 0:00:17.4]} 36. Qd4
{[%clk 0:01:58.6]} 36... Kg8 {[%clk 0:00:18.3]} 37. Kb2 {[%clk 0:01:58.5]} 37...
a5 {[%clk 0:00:19.4]} 38. Ka3 {[%clk 0:01:47]} 38... Re7 {[%clk 0:00:20.4]} 39.
f5 {[%clk 0:01:41.6]} 39... gxf5 {[%clk 0:00:19.2]} 40. g6 {[%clk 0:01:35.8]}
40... hxg6 {[%clk 0:00:14.9]} 41. Rxg6+ {[%clk 0:01:32.3]} 41... Kh7 {[%clk
0:00:16]} 42. Rf6 {[%clk 0:01:19.2]} 42... Rf7 {[%clk 0:00:17.2]} 43. Re6 {[%clk
0:01:20.3]} 43... Qd8 {[%clk 0:00:11.3]} 44. Qg1 {[%clk 0:01:17.9]} 44... Qh4
{[%clk 0:00:10.3]} 45. Qg6+ {[%clk 0:01:18.1]} 45... Kh8 {[%clk 0:00:11.6]} 46.
Re8+ {[%clk 0:01:18.8]} 1-0

[Event "*** MasterClass Titled Tuesday Blitz"]
[Site "Chess.com"]
[Date "2017.12.05"]
[Round "3"]
[White "Kaphrep"]
[Black "chito89"]
[Result "0-1"]
[WhiteElo "2589"]
[BlackElo "2591"]
[TimeControl "180+2"]
[EndTime "14:49:55 PST"]
[Termination "chito89 won by resignation"]

1. Nf3 {[%clk 0:02:40.3]} 1... d5 {[%clk 0:02:58.8]} 2. d4 {[%clk 0:02:41]} 2...
Nf6 {[%clk 0:02:57]} 3. Bf4 {[%clk 0:02:40.6]} 3... c5 {[%clk 0:02:49.5]} 4. e3
{[%clk 0:02:40.5]} 4... cxd4 {[%clk 0:02:49.5]} 5. exd4 {[%clk 0:02:40.5]} 5...
Nc6 {[%clk 0:02:50.9]} 6. c3 {[%clk 0:02:41.1]} 6... Bg4 {[%clk 0:02:49.1]} 7.
Nbd2 {[%clk 0:02:40.9]} 7... e6 {[%clk 0:02:49.9]} 8. Qb3 {[%clk 0:02:39.7]}
8... Qc8 {[%clk 0:02:34.4]} 9. Bd3 {[%clk 0:02:34]} 9... Be7 {[%clk 0:02:33.4]}
10. O-O {[%clk 0:02:35.4]} 10... O-O {[%clk 0:02:34.1]} 11. Rae1 {[%clk
0:02:28.9]} 11... Bh5 {[%clk 0:02:34.2]} 12. Re3 {[%clk 0:01:59.1]} 12... Bg6
{[%clk 0:02:29.8]} 13. Bxg6 {[%clk 0:01:59]} 13... hxg6 {[%clk 0:02:29.4]} 14.
Bg5 {[%clk 0:01:45]} 14... Qc7 {[%clk 0:02:17.7]} 15. h3 {[%clk 0:01:33.5]}
15... b5 {[%clk 0:02:17]} 16. Rfe1 {[%clk 0:01:27.9]} 16... Rab8 {[%clk
0:02:17.4]} 17. a3 {[%clk 0:01:16.8]} 17... a5 {[%clk 0:02:12.2]} 18. Ne5 {[%clk
0:01:16.7]} 18... Rfe8 {[%clk 0:01:55.9]} 19. Qd1 {[%clk 0:01:06.1]} 19... b4
{[%clk 0:01:49.5]} 20. Nxc6 {[%clk 0:00:55.4]} 20... Qxc6 {[%clk 0:01:49.6]} 21.
cxb4 {[%clk 0:00:56.7]} 21... axb4 {[%clk 0:01:50.6]} 22. a4 {[%clk 0:00:58.3]}
22... Rec8 {[%clk 0:01:42.8]} 23. Nf3 {[%clk 0:00:34.6]} 23... Bd6 {[%clk
0:01:37.5]} 24. Bxf6 {[%clk 0:00:27]} 24... gxf6 {[%clk 0:01:37.8]} 25. Nh4
{[%clk 0:00:21.1]} 25... Bf4 {[%clk 0:01:23.6]} 26. Nxg6 {[%clk 0:00:12.4]}
26... fxg6 {[%clk 0:01:14.6]} 27. Rxe6 {[%clk 0:00:13.8]} 27... Qxe6 {[%clk
0:01:15.7]} 28. Rxe6 {[%clk 0:00:13.4]} 28... Rc1 {[%clk 0:01:17.2]} 29. Qxc1
{[%clk 0:00:12.5]} 29... Bxc1 {[%clk 0:01:18.6]} 30. b3 {[%clk 0:00:14.4]} 30...
Kf7 {[%clk 0:01:08.3]} 31. Rd6 {[%clk 0:00:15]} 31... Rc8 {[%clk 0:01:09.4]} 32.
Rxd5 {[%clk 0:00:14.7]} 32... Rc3 {[%clk 0:01:09.8]} 33. Rb5 {[%clk 0:00:07]}
33... Rxb3 {[%clk 0:01:10.2]} 34. a5 {[%clk 0:00:08.4]} 34... Rb1 {[%clk
0:01:10.5]} 35. Kh2 {[%clk 0:00:06.3]} 35... b3 {[%clk 0:01:08.5]} 36. d5 {[%clk
0:00:04.2]} 36... b2 {[%clk 0:01:09.2]} 37. Rb7+ {[%clk 0:00:05.7]} 37... Ke8
{[%clk 0:01:09.3]} 38. a6 {[%clk 0:00:07.2]} 38... Ra1 {[%clk 0:01:04.4]} 39. a7
{[%clk 0:00:08.3]} 39... Kd8 {[%clk 0:00:56.4]} 40. d6 {[%clk 0:00:08.5]} 40...
Rxa7 {[%clk 0:00:56.1]} 41. Rb8+ {[%clk 0:00:03.1]} 41... Kd7 {[%clk 0:00:56]}
0-1

[Event "*** MasterClass Titled Tuesday Blitz"]
[Site "Chess.com"]
[Date "2017.12.05"]
[Round "3"]
[White "cheese111"]
[Black "Markov_Mikhail"]
[Result "0-1"]
[WhiteElo "2415"]
[BlackElo "2615"]
[TimeControl "180+2"]
[EndTime "14:50:08 PST"]
[Termination "Markov_Mikhail won on time"]

1. e4 {[%clk 0:03:01.9]} 1... c5 {[%clk 0:03:00.8]} 2. Nf3 {[%clk 0:03:01.5]}
2... e6 {[%clk 0:03:02.2]} 3. g3 {[%clk 0:03:00.4]} 3... d5 {[%clk 0:02:57.9]}
4. exd5 {[%clk 0:03:00.9]} 4... exd5 {[%clk 0:02:58.8]} 5. d4 {[%clk 0:03:02.5]}
5... Nf6 {[%clk 0:02:56.3]} 6. Bg2 {[%clk 0:03:03.5]} 6... Be7 {[%clk
0:02:56.8]} 7. O-O {[%clk 0:03:04.8]} 7... O-O {[%clk 0:02:58.2]} 8. Re1 {[%clk
0:03:04.5]} 8... Nc6 {[%clk 0:02:58.9]} 9. Nc3 {[%clk 0:02:52.2]} 9... h6 {[%clk
0:02:55.5]} 10. dxc5 {[%clk 0:02:31.9]} 10... Bxc5 {[%clk 0:02:55.7]} 11. Na4
{[%clk 0:02:12.2]} 11... Bb4 {[%clk 0:02:47.2]} 12. c3 {[%clk 0:02:12.6]} 12...
Bd6 {[%clk 0:02:41.6]} 13. Be3 {[%clk 0:02:07.5]} 13... Bd7 {[%clk 0:02:35.9]}
14. Bc5 {[%clk 0:02:07]} 14... Qc7 {[%clk 0:02:31.3]} 15. Nd4 {[%clk 0:01:23.1]}
15... Bxc5 {[%clk 0:02:17.5]} 16. Nxc5 {[%clk 0:01:22.9]} 16... Bg4 {[%clk
0:02:18.8]} 17. Qd2 {[%clk 0:01:21]} 17... Ne5 {[%clk 0:02:08.7]} 18. Qf4 {[%clk
0:01:13.2]} 18... Qxc5 {[%clk 0:01:40.3]} 19. Rxe5 {[%clk 0:01:12.7]} 19... Rad8
{[%clk 0:01:32.1]} 20. Rae1 {[%clk 0:01:10.3]} 20... Qb6 {[%clk 0:01:28.7]} 21.
Qd2 {[%clk 0:01:03]} 21... a6 {[%clk 0:01:08.4]} 22. Re7 {[%clk 0:01:00]} 22...
Bc8 {[%clk 0:01:07.8]} 23. Nb3 {[%clk 0:00:42.5]} 23... Qd6 {[%clk 0:01:05.9]}
24. Qd4 {[%clk 0:00:38.7]} 24... Ne4 {[%clk 0:00:58.1]} 25. Bxe4 {[%clk
0:00:38.6]} 25... dxe4 {[%clk 0:00:56.7]} 26. Qxd6 {[%clk 0:00:38.3]} 26... Rxd6
{[%clk 0:00:57.2]} 27. R1xe4 {[%clk 0:00:16.9]} 27... Be6 {[%clk 0:00:52.6]} 28.
Re1 {[%clk 0:00:10.9]} 28... b6 {[%clk 0:00:47.7]} 29. Ra7 {[%clk 0:00:05.1]}
29... a5 {[%clk 0:00:48.8]} 30. h4 {[%clk 0:00:05.2]} 30... Rfd8 {[%clk
0:00:48.6]} 31. Nd4 {[%clk 0:00:05]} 31... Bxa2 {[%clk 0:00:45.4]} 32. b3 {[%clk
0:00:05.7]} 32... Rc8 {[%clk 0:00:45.1]} 33. Ra1 {[%clk 0:00:03.9]} 33... Bxb3
{[%clk 0:00:40.3]} 34. Nxb3 {[%clk 0:00:04.7]} 34... Rxc3 {[%clk 0:00:41.4]} 35.
Ra8+ {[%clk 0:00:04.4]} 35... Kh7 {[%clk 0:00:42.1]} 36. Rb1 {[%clk 0:00:03.9]}
36... Rc2 {[%clk 0:00:37.8]} 37. Rf1 {[%clk 0:00:02.3]} 37... Rd3 {[%clk
0:00:34.9]} 0-1

[Event "*** MasterClass Titled Tuesday Blitz"]
[Site "Chess.com"]
[Date "2017.12.05"]
[Round "3"]
[White "johannesh"]
[Black "Aygehovit1992"]
[Result "0-1"]
[WhiteElo "2258"]
[BlackElo "2494"]
[TimeControl "180+2"]
[EndTime "14:50:08 PST"]
[Termination "Aygehovit1992 won by resignation"]

1. d4 {[%clk 0:03:01.1]} 1... Nf6 {[%clk 0:03:00.7]} 2. c4 {[%clk 0:03:01.4]}
2... e6 {[%clk 0:03:02.1]} 3. Nf3 {[%clk 0:03:02.3]} 3... c5 {[%clk 0:03:03.3]}
4. d5 {[%clk 0:02:39.9]} 4... exd5 {[%clk 0:03:03.7]} 5. cxd5 {[%clk 0:02:37.7]}
5... g6 {[%clk 0:03:05.2]} 6. Nc3 {[%clk 0:02:37.6]} 6... Bg7 {[%clk 0:03:06.5]}
7. Bf4 {[%clk 0:02:27.3]} 7... O-O {[%clk 0:03:06.7]} 8. Bd6 {[%clk 0:02:25.7]}
8... Re8 {[%clk 0:03:06.7]} 9. Bxc5 {[%clk 0:02:26.1]} 9... d6 {[%clk
0:02:38.3]} 10. Bd4 {[%clk 0:02:26.2]} 10... Bg4 {[%clk 0:02:39.9]} 11. e3
{[%clk 0:02:22]} 11... Bxf3 {[%clk 0:02:33.5]} 12. Qxf3 {[%clk 0:02:21.3]} 12...
Nbd7 {[%clk 0:02:30.1]} 13. Bb5 {[%clk 0:02:00.3]} 13... Ne5 {[%clk 0:02:18]}
14. Qd1 {[%clk 0:01:56.3]} 14... Re7 {[%clk 0:02:17.9]} 15. O-O {[%clk 0:01:55]}
15... a6 {[%clk 0:02:17.1]} 16. Be2 {[%clk 0:01:55.1]} 16... b5 {[%clk
0:02:18.3]} 17. a3 {[%clk 0:01:51.3]} 17... h5 {[%clk 0:02:16.3]} 18. h3 {[%clk
0:01:50.6]} 18... Rc8 {[%clk 0:02:14]} 19. Rc1 {[%clk 0:01:50]} 19... Nc4 {[%clk
0:02:12.2]} 20. Rc2 {[%clk 0:01:25.6]} 20... Qd7 {[%clk 0:01:50]} 21. Qa1 {[%clk
0:01:20.9]} 21... Qf5 {[%clk 0:01:19]} 22. Rfc1 {[%clk 0:01:13.4]} 22... Rce8
{[%clk 0:01:15.7]} 23. Bf3 {[%clk 0:01:01.2]} 23... g5 {[%clk 0:01:10.7]} 24. b3
{[%clk 0:00:42.2]} 24... g4 {[%clk 0:01:07]} 25. Be2 {[%clk 0:00:33.9]} 25...
Ne5 {[%clk 0:01:06.9]} 26. h4 {[%clk 0:00:34.9]} 26... Nf3+ {[%clk 0:01:05.9]}
27. Bxf3 {[%clk 0:00:14]} 27... gxf3 {[%clk 0:01:07.8]} 28. gxf3 {[%clk
0:00:05.3]} 28... Qxf3 {[%clk 0:01:07]} 29. Re1 {[%clk 0:00:05.1]} 29... Qh3
{[%clk 0:00:36.4]} 30. f3 {[%clk 0:00:03.7]} 30... Qxf3 {[%clk 0:00:34.6]} 31.
Rf2 {[%clk 0:00:04.1]} 31... Qg4+ {[%clk 0:00:24.8]} 32. Rg2 {[%clk 0:00:04.7]}
32... Qxd4 {[%clk 0:00:25.5]} 33. Rf1 {[%clk 0:00:02.5]} 0-1

[Event "*** MasterClass Titled Tuesday Blitz"]
[Site "Chess.com"]
[Date "2017.12.05"]
[Round "3"]
[White "Bryakin_Mikhail"]
[Black "abubakrtagelsir"]
[Result "1-0"]
[WhiteElo "2567"]
[BlackElo "2307"]
[TimeControl "180+2"]
[EndTime "14:50:16 PST"]
[Termination "Bryakin_Mikhail won on time"]

1. d4 {[%clk 0:02:49.2]} 1... d5 {[%clk 0:02:57.2]} 2. Nf3 {[%clk 0:02:49.3]}
2... Nf6 {[%clk 0:02:57.5]} 3. c4 {[%clk 0:02:50.3]} 3... c6 {[%clk 0:02:57.9]}
4. g3 {[%clk 0:02:51.4]} 4... Bf5 {[%clk 0:02:56.5]} 5. Nc3 {[%clk 0:02:52]}
5... e6 {[%clk 0:02:57.4]} 6. Nh4 {[%clk 0:02:53.2]} 6... Bg4 {[%clk 0:02:55.1]}
7. h3 {[%clk 0:02:51.6]} 7... Bh5 {[%clk 0:02:55.5]} 8. g4 {[%clk 0:02:52.6]}
8... Bg6 {[%clk 0:02:51.6]} 9. Nxg6 {[%clk 0:02:53.7]} 9... hxg6 {[%clk
0:02:52.1]} 10. Bg2 {[%clk 0:02:55.3]} 10... Nbd7 {[%clk 0:02:52.5]} 11. Qb3
{[%clk 0:02:51.4]} 11... Qb6 {[%clk 0:02:52.7]} 12. c5 {[%clk 0:02:52.5]} 12...
Qc7 {[%clk 0:02:52.3]} 13. Qd1 {[%clk 0:02:43.5]} 13... O-O-O {[%clk 0:02:36.4]}
14. b4 {[%clk 0:02:42.4]} 14... e5 {[%clk 0:02:36.2]} 15. e3 {[%clk 0:02:41.8]}
15... exd4 {[%clk 0:02:36.6]} 16. exd4 {[%clk 0:02:43.7]} 16... Re8+ {[%clk
0:02:36.2]} 17. Kf1 {[%clk 0:02:44.8]} 17... Ne4 {[%clk 0:02:27.1]} 18. Nxe4
{[%clk 0:02:45.3]} 18... dxe4 {[%clk 0:02:26.6]} 19. d5 {[%clk 0:02:46.6]} 19...
f5 {[%clk 0:02:19.6]} 20. d6 {[%clk 0:02:44.4]} 20... Qd8 {[%clk 0:02:18.8]} 21.
Bb2 {[%clk 0:02:36.7]} 21... Qh4 {[%clk 0:02:08.5]} 22. Qe2 {[%clk 0:02:29.1]}
22... Ne5 {[%clk 0:01:36.9]} 23. Bd4 {[%clk 0:02:18.2]} 23... Kd7 {[%clk
0:01:34.6]} 24. b5 {[%clk 0:02:17.2]} 24... Nd3 {[%clk 0:01:10]} 25. bxc6+
{[%clk 0:02:13.8]} 25... bxc6 {[%clk 0:01:09.2]} 26. Rb1 {[%clk 0:02:05.5]}
26... Bxd6 {[%clk 0:00:57.9]} 27. cxd6 {[%clk 0:02:06.5]} 27... Rb8 {[%clk
0:00:57.6]} 28. Rb3 {[%clk 0:01:54.7]} 28... c5 {[%clk 0:00:47.2]} 29. Bxg7
{[%clk 0:01:51.8]} 29... c4 {[%clk 0:00:38.5]} 30. Rxb8 {[%clk 0:00:54]} 30...
Rxb8 {[%clk 0:00:37.1]} 31. Kg1 {[%clk 0:00:52.3]} 31... Qg5 {[%clk 0:00:13.8]}
32. Qe3 {[%clk 0:00:47.5]} 32... Qh4 {[%clk 0:00:09]} 33. Qxa7+ {[%clk
0:00:46.3]} 33... Ke6 {[%clk 0:00:08.5]} 34. Qe7+ {[%clk 0:00:36.3]} 34... Kd5
{[%clk 0:00:08.9]} 35. Qxh4 {[%clk 0:00:36.7]} 35... c3 {[%clk 0:00:05.1]} 36.
Bxc3 {[%clk 0:00:36.4]} 1-0

[Event "*** MasterClass Titled Tuesday Blitz"]
[Site "Chess.com"]
[Date "2017.12.05"]
[Round "3"]
[White "pedromartinez91"]
[Black "nikitakhoroshev"]
[Result "1-0"]
[WhiteElo "2255"]
[BlackElo "2416"]
[TimeControl "180+2"]
[EndTime "14:50:17 PST"]
[Termination "pedromartinez91 won by resignation"]

1. g3 {[%clk 0:03:01.9]} 1... g6 {[%clk 0:02:24.1]} 2. Bg2 {[%clk 0:03:02.7]}
2... Bg7 {[%clk 0:02:23.9]} 3. Nf3 {[%clk 0:03:02.8]} 3... c5 {[%clk 0:02:24.2]}
4. O-O {[%clk 0:03:03.7]} 4... Nc6 {[%clk 0:02:24.5]} 5. c4 {[%clk 0:03:04.7]}
5... e6 {[%clk 0:02:25.5]} 6. Nc3 {[%clk 0:03:05.7]} 6... Nge7 {[%clk
0:02:26.7]} 7. e4 {[%clk 0:03:05.8]} 7... O-O {[%clk 0:02:26.6]} 8. d3 {[%clk
0:03:06.6]} 8... d6 {[%clk 0:02:27.6]} 9. Be3 {[%clk 0:03:03.3]} 9... e5 {[%clk
0:02:24]} 10. a3 {[%clk 0:02:51.2]} 10... h6 {[%clk 0:01:45.4]} 11. Rb1 {[%clk
0:02:49.2]} 11... f5 {[%clk 0:01:45.9]} 12. exf5 {[%clk 0:02:29.7]} 12... gxf5
{[%clk 0:01:46.1]} 13. Nh4 {[%clk 0:02:30.8]} 13... f4 {[%clk 0:01:45.6]} 14.
Bd2 {[%clk 0:02:31.9]} 14... Kh7 {[%clk 0:01:45.8]} 15. Be4+ {[%clk 0:02:31.1]}
15... Kh8 {[%clk 0:01:46]} 16. Qh5 {[%clk 0:02:30.1]} 16... Nd4 {[%clk
0:01:34.3]} 17. Nd5 {[%clk 0:02:22.7]} 17... Kg8 {[%clk 0:01:06.3]} 18. Bc3
{[%clk 0:02:16]} 18... Ndf5 {[%clk 0:01:02.3]} 19. Nxe7+ {[%clk 0:02:02.4]}
19... Nxe7 {[%clk 0:01:02.8]} 20. Ng6 {[%clk 0:01:59.7]} 20... Nxg6 {[%clk
0:01:02.2]} 21. Qxg6 {[%clk 0:02:01.6]} 21... Rf6 {[%clk 0:01:01.6]} 22. Qh5
{[%clk 0:01:49.9]} 22... Qe7 {[%clk 0:01:02]} 23. Kh1 {[%clk 0:01:42]} 23... Be6
{[%clk 0:01:02.5]} 24. f3 {[%clk 0:01:22.4]} 24... Raf8 {[%clk 0:00:59.4]} 25.
g4 {[%clk 0:01:20.4]} 25... b6 {[%clk 0:00:58.9]} 26. Qh3 {[%clk 0:01:20.5]}
26... Kf7 {[%clk 0:00:57]} 27. Qg2 {[%clk 0:01:21.4]} 27... Ke8 {[%clk
0:00:51.2]} 28. h3 {[%clk 0:01:22.1]} 28... R6f7 {[%clk 0:00:52.1]} 29. b4
{[%clk 0:01:18.4]} 29... Kd8 {[%clk 0:00:52.3]} 30. a4 {[%clk 0:01:14.9]} 30...
Qc7 {[%clk 0:00:47.8]} 31. a5 {[%clk 0:01:14.5]} 31... Bc8 {[%clk 0:00:45.3]}
32. Qf2 {[%clk 0:01:13.4]} 32... Bf6 {[%clk 0:00:45]} 33. Ra1 {[%clk 0:01:10.4]}
33... h5 {[%clk 0:00:45.8]} 34. axb6 {[%clk 0:01:05.6]} 34... axb6 {[%clk
0:00:46.1]} 35. bxc5 {[%clk 0:01:06.8]} 35... bxc5 {[%clk 0:00:46.8]} 36. Ba5
{[%clk 0:01:06.7]} 36... hxg4 {[%clk 0:00:47]} 37. Bxc7+ {[%clk 0:01:03.5]}
37... Rxc7 {[%clk 0:00:48.9]} 38. fxg4 {[%clk 0:01:03.7]} 38... Rh8 {[%clk
0:00:47.6]} 39. Kg2 {[%clk 0:01:04.6]} 39... Rg7 {[%clk 0:00:43.1]} 40. Bf3
{[%clk 0:01:00.5]} 40... Rgh7 {[%clk 0:00:42.9]} 41. Rh1 {[%clk 0:01:00.9]}
41... e4 {[%clk 0:00:42.6]} 42. Bxe4 {[%clk 0:00:59.6]} 42... Bd4 {[%clk
0:00:43.7]} 43. Qxf4 {[%clk 0:00:57.3]} 43... Be5 {[%clk 0:00:42.8]} 44. Qg5+
{[%clk 0:00:54.7]} 44... Re7 {[%clk 0:00:43.5]} 45. Ra7 {[%clk 0:00:54.7]} 45...
Re8 {[%clk 0:00:43.8]} 46. Rha1 {[%clk 0:00:50]} 1-0